Cogmind - Beta 15 @@@ ROGUE MODE // 2025.09.04 @ 15:50:31 Player: cingulata Result: Destroyed by as-36111 with Assembled Rifle Performance ------------- Evolutions (0) 0 Regions Visited (4) 800 Robots Destroyed (25) 125 Value Destroyed (537) 537 Prototype IDs (0) 0 Alien Tech Used (0) 0 Bonus (0) 0 TOTAL SCORE: 1462 Bonus ------- None Cogmind --------- Core Integrity 0/250 Matter 188/300 Energy 100/100 System Corruption 1% Temperature Cool (0) Movement Treading (240) Ox1 Location -9/Mines Parts ------- > --- POWER (1) -------- (None) > --- PROPULSION (2) --- Light Treads Light Treads > --- UTILITY (2) ------ High-capacity Storage Unit Core Shielding > --- WEAPON (2) ------- Light Assault Rifle > --- INVENTORY (20) --- Light Ion Engine Light Nuclear Core Aluminum Leg Wheel Compact Wheel High-capacity Matter Pod (200) Structural Scanner Improved Terrain Scanner Terrain Scan Processor Seismic Detector Core Shielding Light Armor Plating Light Armor Plating Light Armor Plating Hacking Suite Datajack Mining Laser Peak State ------------ > --- POWER ------------ Ion Engine > --- PROPULSION ------- Aluminum Leg Compact Wheel > --- UTILITY ---------- High-capacity Storage Unit Seismic Detector > --- WEAPON ----------- Medium Laser Assault Rifle > --- INVENTORY -------- Ion Engine Light Ion Engine Light Nuclear Core Light Treads Light Treads Aluminum Leg Aluminum Leg Wheel Small Storage Unit Large Storage Unit Structural Scanner Hacking Suite Assault Rifle Light Assault Rifle Grenade Launcher Datajack [Rating: 9] Favorites ----------- Power Ion Engine Engine Ion Engine Propulsion Wheel Treads Light Treads Leg Aluminum Leg Wheel Wheel Utility Seismic Detector Device Seismic Detector Storage High-capacity Storage Unit Protection Core Shielding Weapon Assault Rifle Energy Gun Medium Laser Ballistic Gun Assault Rifle Launcher Grenade Launcher Special Weapon Mining Laser Special Melee Weapon Datajack Build | -11 -10 -10 -10 -9 ------- Run | Yrd Mat Min Exi Min Slots Evolved . | . . . . . Power . | . . . . . Propulsion . | . . . . . Utility . | . . . . . Weapon . | . . . . . Parts Attached 27 | 1 22 . 1 3 Power 3 | . 3 . . . Engine 3 | . 3 . . . Core . | . . . . . Reactor . | . . . . . Propulsion 7 | . 7 . . . Treads 2 | . 2 . . . Leg 2 | . 2 . . . Wheel 3 | . 3 . . . Hover . | . . . . . Flight . | . . . . . Utility 10 | 1 8 . . 1 Device 2 | 1 1 . . . Storage 3 | . 3 . . . Processor . | . . . . . Hackware . | . . . . . Protection 5 | . 4 . . 1 Artifact . | . . . . . Weapon 7 | . 4 . 1 2 Energy Gun 1 | . 1 . . . Energy Cannon . | . . . . . Ballistic Gun 3 | . 2 . . 1 Ballistic Cannon . | . . . . . Launcher 1 | . . . . 1 Special Weapon 1 | . 1 . . . Impact Weapon . | . . . . . Slashing Weapon . | . . . . . Piercing Weapon . | . . . . . Special Melee Weapon 1 | . . . 1 . Unidentified Prototypes . | . . . . . Parts Lost 8 | . 3 . . 5 Power 2 | . 1 . . 1 Propulsion 2 | . 1 . . 1 Utility . | . . . . . Weapon 4 | . 1 . . 3 Highest Loss Streak 5 | . 3 . . 5 To Critical Strikes . | . . . . . Average Backups 16 | 6 15 20 20 19 Power 2 | 1 2 2 2 2 Propulsion 3 | 4 3 4 4 3 Utility 7 | . 6 10 10 10 Weapon 2 | 1 2 3 3 2 Tool/Special . | . . . . . Unused Backups 19 | . 9 . . 10 Power 3 | . 1 . . 2 Propulsion 6 | . 4 . . 2 Utility 8 | . 2 . . 6 Weapon 2 | . 2 . . . Tool/Special . | . . . . . Average Slot Usage (%) 99 | . 99 100 100 99 Engine 13 | . 13 14 14 14 Treads 1 | . 1 . . 1 Leg 7 | . 11 . . . Wheel 18 | . 14 28 28 26 Device 11 | . 11 11 12 12 Storage 14 | . 14 14 14 14 Protection 1 | . 1 2 1 1 Energy Gun 6 | . 10 . . . Ballistic Gun 15 | . 16 28 4 27 Special Weapon 3 | . 1 . 11 . Special Melee Weapon 2 | . . . 11 . Peak Build Rating 9 | 7 9 9 9 9 Average Rating 8 | 6 8 9 9 8 On Entrance 8 | 6 7 9 9 9 Naked Turns . | . . . . . Heaviest Build 69 | 13 69 50 50 51 Greatest Support 40 | 20 40 20 20 20 Greatest Overweight (x) 4 | . 4 2 2 2 Average Overweight (x) 1 | . 1 2 2 2 Largest Inventory Capacity 20 | 8 20 20 20 20 Average Capacity 18 | 8 17 20 20 20 Most Carried 20 | 6 20 20 20 20 Average Carried 16 | 6 15 20 20 19 Final Capacity 20 | 8 20 20 20 20 Final Carried 20 | 6 20 20 20 17 Class Distribution -------------------- 97% | Mutant Dominant Class ---------------- Mutant | -10/Materials Mutant | -10/Mines Mutant | -10/Exiles Mutant | -9/Mines Resources | -11 -10 -10 -10 -9 ----------- Run | Yrd Mat Min Exi Min Matter Collected 1051 | 228 738 20 55 10 Remotely . | . . . . . Salvage Created 922 | 106 758 . . 58 Parts 46 | 5 41 . . . Haulers Intercepted . | . . . . . Recyclers Shooed 2 | 1 1 . . . Parts Field Recycled . | . . . . . Retrieved Matter . | . . . . . Parts Self-Destructed . | . . . . . Prevented . | . . . . . Kills | -11 -10 -10 -10 -9 ------- Run | Yrd Mat Min Exi Min Combat Hostiles Destroyed 19 | . 14 . . 5 Guns 16 | . 14 . . 2 AOE 3 | . . . . 3 Classes Destroyed 8 | 2 5 . . 1 Builder 2 | . 2 . . . Tunneler 3 | 1 2 . . . Recycler 2 | 1 1 . . . Operator 1 | . 1 . . . Watcher 3 | . 3 . . . Swarmer 3 | . 3 . . . Grunt 11 | . 11 . . . Assembled 5 | . . . . 5 Best Kill Streak 6 | 2 6 . . 5 Combat Bots Only 5 | . 5 . . 5 Max Kills in Single Turn 1 | 1 1 . . 1 Gunslinging . | . . . . . Exploded 1 | . . . . 1 Melee . | . . . . . Uniques/NPCs Destroyed . | . . . . . Combat | -11 -10 -10 -10 -9 -------- Run | Yrd Mat Min Exi Min Hostile Shots Fired 110 | . 72 . . 38 Missed 33 | . 20 . . 13 Hits 77 | . 52 . . 25 Melee 2 | . . . . 2 Projectile 75 | . 52 . . 23 AOE 3 | . 3 . . . Part Disruptions 1 | . 1 . . . Damage Taken 1192 | . 752 . . 440 Core 250 | . 170 . . 80 Absorbed by Shields . | . . . . . Redirected to Shielding 24 | . 9 . . 15 Core Remaining (%) 100 | 100 . . . . Volleys Fired 111 | 6 93 . . 12 Largest 2 | 2 2 . . 2 Hottest 150 | 70 150 . . 40 Shots Fired 210 | 12 178 . . 20 Gun 196 | 12 167 . . 17 Cannon . | . . . . . Launcher 3 | . . . . 3 Special 11 | . 11 . . . Kinetic 128 | 6 105 . . 17 Thermal 79 | 6 73 . . . Explosive 3 | . . . . 3 Electromagnetic . | . . . . . Robot Hit Streak 11 | 3 11 . . 4 Robot Miss Streak 7 | 2 7 . . 5 Penetration Max . | . . . . . Secondary Targets 3 | . 2 . . 1 Max Gunslinging Chain 1 | . 1 . . 1 Shots Hit Robots 119 | 6 102 . . 11 Core Hits 59 | 3 40 . . 16 Critical Kills . | . . . . . Critical Parts Destroyed . | . . . . . Critical Strikes 6 | . 6 . . . Burn 6 | . 6 . . . Melee Attacks . | . . . . . Impact . | . . . . . Slashing . | . . . . . Piercing . | . . . . . Sneak Attacks . | . . . . . Combat Hostiles . | . . . . . Follow-up Attacks . | . . . . . Damage Inflicted 1815 | 76 1377 . . 362 Guns 1579 | 76 1377 . . 126 Cannons . | . . . . . Explosions 236 | . . . . 236 Melee . | . . . . . Ramming . | . . . . . Kinetic 1065 | 50 889 . . 126 Thermal 514 | 26 488 . . . Explosive 236 | . . . . 236 Electromagnetic . | . . . . . Impact . | . . . . . Slashing . | . . . . . Piercing . | . . . . . Highest Corruption 1 | . 1 1 1 1 Average Corruption 1 | . 1 1 1 1 Corruption Purged . | . . . . . Corruption Blocked . | . . . . . Effects 10 | . 4 . 5 1 Message Errors 5 | . 2 . 2 1 Matter Fused 1 | . . . 1 . Heat Flow Errors 1 | . 1 . . . Parts Rejected 1 | . 1 . . . Data Loss (minor) 1 | . . . 1 . Alerts 1 | . . . 1 . Overload Shots . | . . . . . Overflow Damage 14 | . . . . 14 Projectiles . | . . . . . Explosions 14 | . . . . 14 Melee . | . . . . . Knockbacks . | . . . . . Impact . | . . . . . Kinetic . | . . . . . Secondary . | . . . . . Self-Inflicted Damage 85 | . . . . 85 Shots 3 | . . . . 3 Rammed . | . . . . . Targets Rammed . | . . . . . Kicked . | . . . . . Crushed . | . . . . . Highest Temperature 233 | 54 233 . . 20 Average Temperature 35 | 28 36 . . 12 Received Heat Transfer 334 | . 294 . . 40 Siege Activations . | . . . . . Martial Activations . | . . . . . Shielding Activations . | . . . . . Robots Disrupted . | . . . . . Combat Hostiles . | . . . . . Robots Corrupted . | . . . . . Combat Hostiles . | . . . . . Parts Fried . | . . . . . Impact Corruptions . | . . . . . Robots Melted . | . . . . . Combat Hostiles . | . . . . . Parts Melted 3 | . 3 . . . Heat Transferred 1924 | 74 1850 . . . Parts Sabotaged . | . . . . . Parts Stolen . | . . . . . Parts Stripped . | . . . . . Power Chain Reactions . | . . . . . Alert | -11 -10 -10 -10 -9 ------- Run | Yrd Mat Min Exi Min Maximum Alert Level . | . . . . . Low Security (%) 100 | 100 100 100 . 100 Level 1 . | . . . . . Level 2 . | . . . . . Level 3 . | . . . . . Level 4 . | . . . . . Level 5 . | . . . . . High Security . | . . . . . Max Security . | . . . . . Peak Influence 106 | 10 106 5 . 10 Initial 5 | . . 5 . . Average 22 | 1 27 2 . . Influence Increases 483 | 10 459 . . 14 Destroy 0b10 Robot/C 280 | . 280 . . . Destroy 0b10 Robot/NC 55 | 10 45 . . . Destroy Leader 76 | . 76 . . . Successful Hack 12 | . 12 . . . Select Force Hacks 30 | . 30 . . . Destroy Structure 30 | . 16 . . 14 Influence Decreases 483 | 10 445 14 . 14 Entered New Map 9 | . . 9 . . Time Decay 450 | 10 435 5 . . Lost Part 24 | . 10 . . 14 Squads Dispatched 5 | . 5 . . . Investigation 2 | . 2 . . . Extermination . | . . . . . Reinforcement 3 | . 3 . . . Assault . | . . . . . Garrison . | . . . . . Intercept . | . . . . . Searches Triggered . | . . . . . Construction Impeded . | . . . . . Haulers Reinforced . | . . . . . Active Scanning Responses . | . . . . . Cargo Convoy Interrupts . | . . . . . Stealth | -11 -10 -10 -10 -9 --------- Run | Yrd Mat Min Exi Min Distress Signals 1 | . 1 . . . Communications Jammed . | . . . . . Distress Signals . | . . . . . Times Spotted 39 | . 30 . . 9 Peak Tracking Total 6 | . 4 . . 6 Tactical Retreats 1 | . . . . 1 Traps | -11 -10 -10 -10 -9 ------- Run | Yrd Mat Min Exi Min Traps Triggered 2 | . 2 . . . Indirectly . | . . . . . Trap Hack Attempts . | . . . . . Triggered . | . . . . . Disarmed . | . . . . . Reprogrammed . | . . . . . Reused . | . . . . . Traps Extracted . | . . . . . Installed . | . . . . . Triggered . | . . . . . Machines | -11 -10 -10 -10 -9 ---------- Run | Yrd Mat Min Exi Min Machines Disabled . | . . . . . Max in Single Turn . | . . . . . Machines Repaired . | . . . . . Machines Dismantled . | . . . . . Machines Sabotaged . | . . . . . Overloaded Fab Kills . | . . . . . Hacking | -11 -10 -10 -10 -9 --------- Run | Yrd Mat Min Exi Min Machines Accessed 11 | . 8 . 3 . Terminals 5 | . 5 . . . Fabricators . | . . . . . Repair Stations 1 | . 1 . . . Recycling Units 2 | . 2 . . . Scanalyzers . | . . . . . Garrison Access . | . . . . . Total Hacks 33 | . 30 . 3 . Successful 20 | . 17 . 3 . Failed 12 | . 12 . . . Catastrophic 2 | . 2 . . . Database Lockouts 1 | . 1 . . . Manual 23 | . 23 . . . Terminals 23 | . 23 . . . Fabricators . | . . . . . Repair Stations 2 | . 2 . . . Recycling Units 5 | . 5 . . . Scanalyzers . | . . . . . Garrison Access . | . . . . . Terminal Hacks 8 | . 5 . 3 . Record 3 | . . . 3 . Robot Analysis 1 | . 1 . . . Locate Traps 3 | . 3 . . . Recall Investigation 1 | . 1 . . . Fabricator Hacks . | . . . . . Repair Station Hacks 1 | . 1 . . . Scan Component 1 | . 1 . . . Recycling Unit Hacks 3 | . 3 . . . Process 1 | . 1 . . . Report Inventory 1 | . 1 . . . Retrieve Matter 1 | . 1 . . . Scanalyzer . | . . . . . Garrison Access Hacks . | . . . . . Unauthorized Hacks 8 | . 8 . . . Terminals 7 | . 7 . . . Botnet 2 | . 2 . . . Skim 5 | . 5 . . . Fabricators . | . . . . . Repair Stations . | . . . . . Recycling Units 1 | . 1 . . . Tunnel 1 | . 1 . . . Scanalyzers . | . . . . . Garrison Access . | . . . . . Data Cores Recovered . | . . . . . Used . | . . . . . Hacking Detections 6 | . 6 . . . Full Trace Events 1 | . 1 . . . Feedback Events . | . . . . . Feedback Blocked . | . . . . . Robot Schematics Acquired . | . . . . . Robots Built . | . . . . . Authchips . | . . . . . Time . | . . . . . Total Robot Build Rating . | . . . . . Part Schematics Acquired . | . . . . . Parts Built . | . . . . . Authchips . | . . . . . Time . | . . . . . Total Part Build Rating . | . . . . . Parts Repaired . | . . . . . Time . | . . . . . Parts Recycled . | . . . . . Recycled Matter 172 | . 172 . . . Retrieved Matter 220 | . 220 . . . Retrieved Components . | . . . . . Parts Scanalyzed . | . . . . . Part Schematics Acquired . | . . . . . Parts Damaged . | . . . . . Bothacking | -11 -10 -10 -10 -9 ------------ Run | Yrd Mat Min Exi Min Used RIF Installer . | . . . . . Robots Hacked . | . . . . . Non-combat . | . . . . . Combat . | . . . . . Robot Hacks Applied . | . . . . . Relay Couplers Released . | . . . . . Fabnet Peak Effective % . | . . . . . Robots Rewired . | . . . . . Allies Hacked . | . . . . . Hacks Repelled . | . . . . . Allies | -11 -10 -10 -10 -9 -------- Run | Yrd Mat Min Exi Min Total Allies . | . . . . . Largest Group . | . . . . . Highest-Rated Group . | . . . . . Highest-Rated Ally . | . . . . . Total Orders . | . . . . . Ally Attacks . | . . . . . Total Damage . | . . . . . Kills . | . . . . . Allies Corrupted . | . . . . . Allies Melted . | . . . . . Intel | -11 -10 -10 -10 -9 ------- Run | Yrd Mat Min Exi Min Active Infowar (turns) 2210 | 25 1406 39 481 259 Seismic 2210 | 25 1406 39 481 259 Robot Analysis Total 1 | . 1 . . . Derelict Logs Recovered . | . . . . . Drone Launches . | . . . . . Drone Recoveries . | . . . . . Exploration | -11 -10 -10 -10 -9 ------------- Run | Yrd Mat Min Exi Min Turns Passed 2669 | 59 1739 45 532 294 Spaces Moved 1713 | 30 947 40 477 219 Core . | . . . . . Treads 30 | . 30 . . . Legs 120 | 30 90 . . . Wheels 1563 | . 827 40 477 219 Hover . | . . . . . Flight . | . . . . . Fastest Speed 110 | 120 110 110 110 110 Average Speed 120 | 120 129 110 110 110 Slowest Speed 240 | 120 240 110 110 110 Overloaded Moves . | . . . . . Propulsion Burnouts . | . . . . . Robots Hopped . | . . . . . Potential Cave-ins . | . . . . . Cave-ins Triggered . | . . . . . Exploration Rate (%) 51 | 3 97 8 88 61 Regions Visited 4 Branch Regions 3 Pre-discovered Areas 1 | . 1 . . . Known Exits Taken . | . . . . . Unknown Exits Taken 4 | 1 1 1 1 . Scrap Searched 1 | . . . . 1 Spaces Dug 10 | . 10 . . . Terrain Destroyed 25 | . 11 . . 14 Melee . | . . . . . Projectile 11 | . 11 . . . AOE 14 | . . . . 14 Terrain Rammed . | . . . . . Walls Destroyed . | . . . . . Machines Disabled . | . . . . . Actions | -11 -10 -10 -10 -9 --------- Run | Yrd Mat Min Exi Min Total 2068 | 40 1256 40 481 251 Wait 163 | 4 146 . . 13 Move 1709 | 29 946 39 476 219 Hop . | . . . . . Pick Up 23 | . 23 . . . Fast Attach 2 | 1 1 . . . Attach 7 | . 4 . . 3 Detach . | . . . . . Swap 39 | . 29 1 5 4 Drop 14 | . 14 . . . Fire 111 | 6 93 . . 12 Melee . | . . . . . Ram . | . . . . . Kick . | . . . . . Crush . | . . . . . Escape Stasis . | . . . . . Rewire . | . . . . . Trap . | . . . . . Miscellaneous . | . . . . . Route ------- -11/Scrapyard -10/Materials (discovered 6 exits: [*Mat x3] / [*Min x2] / [*Sub]) -10/Mines -10/Exiles -9/Mines History --------- Turn | Location | Event 20 | -11/Scrapyard | Discovered new exit (range 3) 60 | -11/Scrapyard | Entered Materials 310 | -10/Materials | Build established: Mutant 369 | -10/Materials | Discovered new exit (range 12) 379 | -10/Materials | Central database locked down 777 | -10/Materials | Discovered new exit (range 10) 1009 | -10/Materials | Discovered new exit (range 9) 1135 | -10/Materials | Discovered new exit (range 6) 1294 | -10/Materials | Core integrity fell below 50% 1340 | -10/Materials | Lost 3 parts (1p1n1w) 1449 | -10/Materials | Discovered new exit (range 11) 1631 | -10/Materials | Discovered new exit (range 6) 1799 | -10/Materials | Entered Mines 1812 | -10/Mines | Deemed a non-threat by the Exiles lab entrance 1813 | -10/Mines | Discovered new exit (range 5) 1826 | -10/Mines | Met a Derelict bent on vengeance 1844 | -10/Mines | Entered Exiles 1844 | -10/Exiles | Found Exiles lab abandoned 2364 | -10/Exiles | Discovered new exit (range 10) 2376 | -10/Exiles | Entered Mines 2590 | -9/Mines | Assembled infested the area 2640 | -9/Mines | Core integrity fell below 20% 2670 | -9/Mines | Destroyed by as-36111 with Assembled Rifle Last Messages --------------- 02470_ Acquired 10 matter. 02552_ T-07 Excavator is excavating. 02564_ CI:XEP4JZ=S&K<&|CETDAA=LKW =U 02565_ T-07 Excavator is excavating. 02590_ ALERT: Infestation in the mines, dispatching Demolisher response squad. 02637_ as-47030 destroyed. 02639_ as-02463 destroyed. 02642_ Grenade Launcher destroyed. 02642_ Destroyed Grenade Launcher. 02642_ Destroyed Asb. Hover Unit. 02642_ as-19768 destroyed. 02642_ as-38455 suffers critical hit (Destroy). 02643_ as-28074 destroyed. 02648_ as-73084 destroyed. 02652_ Wheel destroyed. 02662_ as-78911 destroyed. 02662_ Switching to secondary target: as-36111. 02664_ Assault Rifle destroyed. 02670_ Ion Engine destroyed. Map ----- +----------------------------------------------------+ | ??????????????????????????????????? | | ??????????????????????????????????? | | ??????????????????????????????????? | | ??????????????????????????????????? | | ????????????????????????????????### | | ???????####????????????????????## | | ??????## ##??????????????###### | | ???#### #######????##### | | ??## ###### | | ??# ###### | | ??# #????# | | ??# ##????####### | | ??# #???????????# # | | ??## ##??????????# ## | | ???## #??????????## ###? | | ????## ##??????????##### ###??? | | ?????# #??????????????# #????? | | ?????# #??????????????# #????? | | ?????## #??????????????# #????? | | ??????## ##????????????? #????? | | ???????## ##???????????#####????? | | ???????## #????????????????????? | | ???##### ##???????????????????? | | ??## #???????????????????? | | ??# #???????????????????? | | ??# @ #???????????????????? | | ?# ###???????????????????? | | ?# ##?????????????????????? | | ?## % #??????????????????????? | | ??### a #??????????????????????? | | ????# #??????????????????????? | | ????## [a%%??????????????????????? | | ?????### =*[??????????????????????? | | ???????## #??????????????????????? | | ????????# #???????????????????????? | | ????????# #???????????????????????? | | ????????# #???????????????????????? | | ????????# #???????????????????????? | | ????????? #???????????????????????? | | ????????? #???????????????????????? | | ????????? ????????????????????????? | | ????????? ????????????????????????? | | ??????????????????????????????????? | | ??????????????????????????????????? | | ??????????????????????????????????? | | ??????????????????????????????????? | | ??????????????????????????????##### | | ??????????????????????????????# | | ??????????????????????????????# ### | | ??????????????????????????????# #?? | +----------------------------------------------------+ Best States ------------- Heat Dissipation 25 Energy Generation 10 Energy Capacity 250 Matter Stores 300 Matter Capacity 300 Sight Range 16 Terrain Scan Density 10 Armor Coverage 150 Core Shielding 20 Evasion (%) 55 Recoil Reduction 2 Item Schematics ----------------- None Robot Schematics ------------------ None Fabricated ------------ Nothing Repaired ---------- Nothing Alien Tech Used ----------------- None Achievements -------------- None Challenges ------------ None Game ------ Seed LightningSystemExtrapolator Manual? 0 Play Time 00:25:47 Cumulative 110.0 hours Start 2025.09.04 @ 15:27:02 End 2025.09.04 @ 15:50:31 Sessions 1 Manual Loads 0 Difficulty Rogue Special Mode None Game No. 61 Rogue 57 Adventurer 1 Explorer 3 Win Type - Total 4 Types 3/1/0/0/0/0/0/0/0/0 Lore% 57 Gallery% 58 Achievement% 56 Wizard Run 0 Options --------- Layout 2 ASCII 0 Keyboard 1 Movement Numpad Keybinds 0 Fullscreen 1 Font 32/SmallcapsGlow Map View 50x44 Zoom Use 0% Tactical HUD 1 Map Filters NONE Filters NONE Steam 1 RUN: 3acc6465-da71-4cb5-bab9-2d3f13ab6733